fUSD/lending_fUSD_20260605
["ID","MTS","AMOUNT","RATE_DAILY","PERIOD"]
[424201104,1780654237000,-884.54509946,0.000119,4]
[424201103,1780654237000,-394.68030262,0.000119,4]
[424201101,1780654237000,-46.68030262,0.0001185,2]
[424201175,1780654252000,-151.0,0.00012225,2]
[424201154,1780654252000,-670.46851618,0.00012139,2]
[424201159,1780654252000,-302.46,0.0001214,2]
[424201160,1780654252000,-357.3671277,0.0001214,2]
[424201162,1780654252000,-152.0,0.00012203,7]
[424201161,1780654252000,-500.0,0.00012192,2]
[424201163,1780654252000,-826.7696024,0.00012223,2]
[424201170,1780654252000,-1548.0,0.00012225,2]
[424201168,1780654252000,-9079.7221161,0.00012224,2]
[424201166,1780654252000,-150.99,0.00012223,2]
[424201164,1780654252000,-3630.26,0.00012223,2]
[424201169,1780654252000,-1548.0,0.00012225,2]
[424201167,1780654252000,-313869.8195729,0.00012224,2]
[424201182,1780654252000,-186.47583835,0.0001224,2]
[424201172,1780654252000,-151.0,0.00012225,2]
[424201183,1780654252000,-200.0,0.0001224,2]
[424201176,1780654252000,-1548.0,0.00012239,2]
[424201174,1780654252000,-151.0,0.00012225,2]
[424201165,1780654252000,-299.99,0.00012223,2]
[424201157,1780654252000,-150.0,0.0001214,2]
[424201152,1780654252000,-303.27356096,0.0001213,2]
[424201155,1780654252000,-150.0,0.00012139,2]
[424201137,1780654252000,-1154.30639488,0.000119,4]
[424201139,1780654252000,-150.0,0.00011979,2]
[424201138,1780654252000,-121.31979946,0.000119,4]
[424201144,1780654252000,-440.62837454,0.00012039,2]
[424201145,1780654252000,-185.63985115,0.00012039,2]
[424201140,1780654252000,-150.0,0.00011979,2]
[424201142,1780654252000,-167.83494967,0.00011979,2]
[424201141,1780654252000,-150.0,0.00011979,2]
[424201146,1780654252000,-231.28807447,0.00012039,2]
[424201143,1780654252000,-1200.0,0.00012038,2]
[424201148,1780654252000,-9809.48297938,0.0001204,2]
[424201158,1780654252000,-213.0,0.0001214,2]
[424201149,1780654252000,-7139.6124552,0.00012115,2]
[424201147,1780654252000,-6727.75312131,0.00012039,2]
[424201150,1780654252000,-409375.773941,0.00012115,2]
[424201151,1780654252000,-488.82947264,0.00012124,2]
[424201153,1780654252000,-300.0,0.00012139,2]
[424201156,1780654252000,-2059224.59618811,0.0001214,2]
[424201171,1780654252000,-1548.0,0.00012225,2]
[424201184,1780654252000,-1548.0,0.0001224,2]
[424201177,1780654252000,-152.0,0.00012239,2]
[424201197,1780654252000,-500.0,0.00012253,2]
[424201200,1780654252000,-166.67,0.00012274,2]
[424201206,1780654252000,-150.52165905,0.00012329,2]
[424201203,1780654252000,-213.16237488,0.00012329,2]
[424201202,1780654252000,-153.47690992,0.00012329,2]
[424201205,1780654252000,-186.18115721,0.00012329,2]
[424201207,1780654252000,-151.0,0.00012329,2]
[424201209,1780654252000,-151.0,0.00012329,2]
[424201199,1780654252000,-275.92945887,0.00012253,2]
[424201214,1780654252000,-200.0,0.00012362,2]
[424201213,1780654252000,-200.0,0.00012362,2]
[424201210,1780654252000,-151.0,0.00012329,2]
[424201217,1780654252000,-151.0,0.0001247,2]
[424201216,1780654252000,-202.43475602,0.00012429,2]
[424201219,1780654252000,-200.0,0.00012486,2]
[424201218,1780654252000,-151.0,0.0001247,2]
[424201173,1780654252000,-151.0,0.00012225,2]
[424201215,1780654252000,-151.0,0.00012404,2]
[424201211,1780654252000,-6727.75312123,0.00012357,2]
[424201204,1780654252000,-426.32474976,0.00012329,2]
[424201212,1780654252000,-9809.48297936,0.00012358,2]
[424201208,1780654252000,-151.0,0.00012329,2]
[424201179,1780654252000,-152.0,0.00012239,2]
[424201180,1780654252000,-152.0,0.00012239,2]
[424201181,1780654252000,-200.0,0.0001224,2]
[424201178,1780654252000,-152.0,0.00012239,2]
[424201194,1780654252000,-286.98646443,0.00012253,2]
[424201201,1780654252000,-499.38,0.00012329,2]
[424201188,1780654252000,-1548.0,0.0001224,2]
[424201196,1780654252000,-500.0,0.00012253,2]
[424201191,1780654252000,-151.0,0.0001224,2]
[424201195,1780654252000,-500.0,0.00012253,2]
[424201185,1780654252000,-1548.0,0.0001224,2]
[424201186,1780654252000,-1548.0,0.0001224,2]
[424201190,1780654252000,-164.9986118,0.0001224,2]
[424201193,1780654252000,-150.0,0.00012253,2]
[424201189,1780654252000,-1548.0,0.0001224,2]
[424201192,1780654252000,-277.44313622,0.00012253,2]
[424201198,1780654252000,-500.0,0.00012253,2]
[424201187,1780654252000,-1548.0,0.0001224,2]
[424201241,1780654253000,-500.0,0.00012527,2]
[424201240,1780654253000,-500.0,0.00012527,2]
[424201242,1780654253000,-500.0,0.00012527,2]
[424201243,1780654253000,-500.0,0.00012527,2]
[424201245,1780654253000,-500.0,0.00012527,2]
[424201246,1780654253000,-500.0,0.00012527,2]
[424201248,1780654253000,-500.0,0.00012527,2]
[424201255,1780654253000,-500.0,0.00012527,2]
[424201247,1780654253000,-500.0,0.00012527,2]
[424201244,1780654253000,-500.0,0.00012527,2]
[424201253,1780654253000,-500.0,0.00012527,2]
[424201252,1780654253000,-500.0,0.00012527,2]
[424201254,1780654253000,-500.0,0.00012527,2]
[424201251,1780654253000,-500.0,0.00012527,2]
[424201250,1780654253000,-500.0,0.00012527,2]
[424201265,1780654253000,-500.0,0.00012527,2]
[424201249,1780654253000,-500.0,0.00012527,2]
[424201235,1780654253000,-500.0,0.00012527,2]
[424201225,1780654253000,-500.0,0.00012527,2]
[424201236,1780654253000,-500.0,0.00012527,2]
[424201256,1780654253000,-500.0,0.00012527,2]
[424201220,1780654253000,-200.0,0.00012486,2]
[424201221,1780654253000,-151.0,0.00012523,2]
[424201223,1780654253000,-500.0,0.00012527,2]
[424201222,1780654253000,-500.0,0.00012527,2]
[424201224,1780654253000,-500.0,0.00012527,2]
[424201229,1780654253000,-500.0,0.00012527,2]
[424201238,1780654253000,-500.0,0.00012527,2]
[424201233,1780654253000,-500.0,0.00012527,2]
[424201231,1780654253000,-500.0,0.00012527,2]
[424201232,1780654253000,-500.0,0.00012527,2]
[424201226,1780654253000,-500.0,0.00012527,2]
[424201228,1780654253000,-500.0,0.00012527,2]
[424201227,1780654253000,-500.0,0.00012527,2]
[424201234,1780654253000,-500.0,0.00012527,2]
[424201237,1780654253000,-500.0,0.00012527,2]
[424201230,1780654253000,-500.0,0.00012527,2]
[424201262,1780654253000,-500.0,0.00012527,2]
[424201239,1780654253000,-500.0,0.00012527,2]
[424201264,1780654253000,-500.0,0.00012527,2]
[424201288,1780654253000,-1395.99439946,0.00012767,2]
[424201289,1780654253000,-1246.0,0.00012787,5]
[424201285,1780654253000,-10000.0,0.00012698,2]
[424201287,1780654253000,-200.0,0.00012737,2]
[424201284,1780654253000,-216.3798112,0.00012698,2]
[424201281,1780654253000,-6727.75312123,0.00012675,2]
[424201283,1780654253000,-501.77117953,0.00012691,2]
[424201280,1780654253000,-150.0,0.00012646,2]
[424201292,1780654253000,-213.16237488,0.00012812,2]
[424201290,1780654253000,-151.0,0.00012795,2]
[424201293,1780654253000,-2000.0,0.00012859,2]
[424201294,1780654253000,-152.0,0.00012898,2]
[424201295,1780654253000,-200.0,0.00012898,2]
[424201298,1780654253000,-983.012832,0.000129,2]
[424201296,1780654253000,-200.0,0.00012898,2]
[424201297,1780654253000,-983.012832,0.000129,2]
[424201259,1780654253000,-500.0,0.00012527,2]
[424201282,1780654253000,-9809.48297936,0.00012676,2]
[424201279,1780654253000,-200.0,0.00012611,2]
[424201291,1780654253000,-153.47690992,0.00012812,2]
[424201278,1780654253000,-200.0,0.00012611,2]
[424201263,1780654253000,-500.0,0.00012527,2]
[424201286,1780654253000,-200.0,0.00012737,2]
[424201257,1780654253000,-500.0,0.00012527,2]
[424201261,1780654253000,-500.0,0.00012527,2]
[424201260,1780654253000,-500.0,0.00012527,2]
[424201266,1780654253000,-500.0,0.00012527,2]
[424201268,1780654253000,-500.0,0.00012527,2]
[424201267,1780654253000,-500.0,0.00012527,2]
[424201258,1780654253000,-500.0,0.00012527,2]
[424201270,1780654253000,-500.0,0.00012527,2]
[424201272,1780654253000,-500.0,0.00012527,2]
[424201273,1780654253000,-500.0,0.00012527,2]
[424201271,1780654253000,-500.0,0.00012527,2]
[424201275,1780654253000,-311.562506,0.00012527,2]
[424201277,1780654253000,-2503.97252214,0.00012589,2]
[424201276,1780654253000,-166.60651232,0.0001256,2]
[424201269,1780654253000,-500.0,0.00012527,2]
[424201274,1780654253000,-500.0,0.00012527,2]
[424201342,1780654254000,-150.0,0.00013488,2]
[424201347,1780654254000,-150.0,0.00013488,2]
[424201340,1780654254000,-200.0,0.00013422,2]
[424201337,1780654254000,-1227.0,0.00013407,2]
[424201334,1780654254000,-437.0,0.00013344,2]
[424201332,1780654254000,-1357.0,0.00013336,2]
[424201331,1780654254000,-9809.48297936,0.00013311,2]
[424201335,1780654254000,-1278.961,0.00013344,2]
[424201339,1780654254000,-6072.0,0.00013407,2]
[424201330,1780654254000,-6727.75312123,0.00013311,2]
[424201333,1780654254000,-3553.0,0.00013336,2]
[424201336,1780654254000,-944.890318,0.00013356,2]
[424201360,1780654254000,-195.41463467,0.00013548,2]
[424201341,1780654254000,-200.0,0.00013422,2]
[424201345,1780654254000,-150.0,0.00013488,2]
[424201343,1780654254000,-150.0,0.00013488,2]
[424201346,1780654254000,-150.0,0.00013488,2]
[424201349,1780654254000,-150.0,0.00013488,2]
[424201348,1780654254000,-150.0,0.00013488,2]
[424201355,1780654254000,-488.82947263,0.00013512,2]
[424201357,1780654254000,-150.0,0.00013531,2]
[424201356,1780654254000,-195.41463467,0.00013518,2]
[424201358,1780654254000,-195.41463467,0.00013533,2]
[424201359,1780654254000,-150.0,0.00013539,2]
[424201328,1780654254000,-200.0,0.00013289,2]
[424201338,1780654254000,-419.0,0.00013407,2]
[424201329,1780654254000,-151.0,0.000133,2]
[424201306,1780654254000,-9809.48297936,0.00012993,2]
[424201325,1780654254000,-151.0,0.00013265,2]
[424201299,1780654254000,-983.012832,0.000129,2]
[424201301,1780654254000,-154.330341,0.000129,2]
[424201300,1780654254000,-983.012832,0.000129,2]
[424201302,1780654254000,-151.0,0.000129,2]
[424201312,1780654254000,-341.74593099,0.00013108,7]
[424201304,1780654254000,-151.0,0.000129,2]
[424201303,1780654254000,-151.0,0.000129,2]
[424201305,1780654254000,-6727.75312123,0.00012993,2]
[424201313,1780654254000,-151.0,0.00013154,2]
[424201350,1780654254000,-195.41463467,0.00013488,2]
[424201307,1780654254000,-9059.29671368,0.00013,5]
[424201308,1780654254000,-200.0,0.00013027,2]
[424201311,1780654254000,-160.0,0.00013092,2]
[424201310,1780654254000,-166.60651232,0.00013028,2]
[424201309,1780654254000,-200.0,0.00013027,2]
[424201314,1780654254000,-200.0,0.00013157,2]
[424201316,1780654254000,-151.0,0.00013157,2]
[424201317,1780654254000,-151.0,0.00013157,2]
[424201322,1780654254000,-255.0,0.00013219,2]
[424201318,1780654254000,-151.0,0.00013157,2]
[424201319,1780654254000,-151.0,0.00013157,2]
[424201324,1780654254000,-1680.0,0.00013242,2]
[424201315,1780654254000,-200.0,0.00013157,2]
[424201320,1780654254000,-215.77576141,0.000132,2]
[424201321,1780654254000,-166.67,0.00013213,2]
[424201323,1780654254000,-250.0,0.00013227,2]
[424201326,1780654254000,-151.0,0.00013265,2]
[424201327,1780654254000,-200.0,0.00013289,2]
[424201351,1780654254000,-150.0,0.00013488,2]
[424201344,1780654254000,-150.0,0.00013488,2]
[424201352,1780654254000,-166.60651232,0.00013496,2]
[424201393,1780654254000,-150.0,0.00013694,2]
[424201388,1780654254000,-150.0,0.00013683,2]
[424201394,1780654254000,-151.0,0.00013696,2]
[424201396,1780654254000,-500.0,0.00013698,2]
[424201392,1780654254000,-150.0,0.00013692,2]
[424201395,1780654254000,-500.0,0.00013698,2]
[424201398,1780654254000,-500.0,0.00013698,2]
[424201408,1780654254000,-500.0,0.00013698,2]
[424201401,1780654254000,-500.0,0.00013698,2]
[424201397,1780654254000,-500.0,0.00013698,2]
[424201402,1780654254000,-500.0,0.00013698,2]
[424201403,1780654254000,-500.0,0.00013698,2]
[424201390,1780654254000,-166.66,0.00013689,2]
[424201409,1780654254000,-500.0,0.00013698,2]
[424201400,1780654254000,-500.0,0.00013698,2]
[424201406,1780654254000,-500.0,0.00013698,2]
[424201405,1780654254000,-500.0,0.00013698,2]
[424201407,1780654254000,-500.0,0.00013698,2]
[424201410,1780654254000,-500.0,0.00013698,2]
[424201411,1780654254000,-500.0,0.00013698,2]
[424201415,1780654254000,-500.0,0.00013698,2]
[424201412,1780654254000,-437.35290326,0.00013698,2]
[424201413,1780654254000,-500.0,0.00013698,2]
[424201416,1780654254000,-500.0,0.00013698,2]
[424201414,1780654254000,-500.0,0.00013698,2]
[424201354,1780654254000,-150.0,0.00013509,2]
[424201404,1780654254000,-500.0,0.00013698,2]
[424201387,1780654254000,-440.0,0.00013671,2]
[424201399,1780654254000,-500.0,0.00013698,2]
[424201389,1780654254000,-195.41463467,0.00013684,2]
[424201391,1780654254000,-150.0,0.00013692,2]
[424201361,1780654254000,-150.0,0.00013553,2]
[424201362,1780654254000,-150.0,0.00013556,2]
[424201363,1780654254000,-150.0,0.00013556,2]
[424201365,1780654254000,-150.0,0.00013575,2]
[424201369,1780654254000,-150.0,0.00013596,2]
[424201364,1780654254000,-195.41463467,0.00013563,2]
[424201366,1780654254000,-195.41463467,0.00013578,2]
[424201368,1780654254000,-195.41463467,0.00013594,2]
[424201367,1780654254000,-150.0,0.00013591,2]
[424201372,1780654254000,-195.41463467,0.00013609,2]
[424201370,1780654254000,-826.7696024,0.00013607,2]
[424201373,1780654254000,-150.0,0.00013613,2]
[424201371,1780654254000,-434.88,0.00013608,2]
[424201353,1780654254000,-195.41463467,0.00013503,2]
[424201386,1780654254000,-195.41463467,0.00013669,2]
[424201375,1780654254000,-150.0,0.00013624,2]
[424201383,1780654254000,-150.0,0.00013643,2]
[424201384,1780654254000,-195.41463467,0.00013654,2]
[424201382,1780654254000,-150.0,0.0001364,2]
[424201379,1780654254000,-6727.75312123,0.00013628,2]
[424201381,1780654254000,-195.41463467,0.00013639,2]
[424201377,1780654254000,-195.41463467,0.00013624,2]
[424201378,1780654254000,-150.0,0.00013624,2]
[424201376,1780654254000,-150.0,0.00013624,2]
[424201374,1780654254000,-150.0,0.00013618,2]
[424201385,1780654254000,-150.0,0.00013661,2]
[424201380,1780654254000,-9809.48297936,0.00013629,2]
[424201450,1780654255000,-500.0,0.00013698,2]
[424201457,1780654255000,-500.0,0.00013698,2]
[424201467,1780654255000,-500.0,0.00013698,2]
[424201452,1780654255000,-500.0,0.00013698,2]
[424201449,1780654255000,-500.0,0.00013698,2]
[424201447,1780654255000,-500.0,0.00013698,2]
[424201453,1780654255000,-500.0,0.00013698,2]
[424201455,1780654255000,-500.0,0.00013698,2]
[424201454,1780654255000,-500.0,0.00013698,2]
[424201448,1780654255000,-500.0,0.00013698,2]
[424201468,1780654255000,-550.90519724,0.00013698,2]
[424201451,1780654255000,-361.94894226,0.00013698,2]
[424201469,1780654255000,-500.0,0.00013698,2]
[424201460,1780654255000,-500.0,0.00013698,2]
[424201456,1780654255000,-500.0,0.00013698,2]
[424201458,1780654255000,-249.3098753,0.00013698,2]
[424201463,1780654255000,-500.0,0.00013698,2]
[424201465,1780654255000,-500.0,0.00013698,2]
[424201464,1780654255000,-241.38210982,0.00013698,2]
[424201462,1780654255000,-500.0,0.00013698,2]
[424201461,1780654255000,-500.0,0.00013698,2]
[424201466,1780654255000,-500.0,0.00013698,2]
[424201470,1780654255000,-500.0,0.00013698,2]
[424201472,1780654255000,-500.0,0.00013698,2]
[424201473,1780654255000,-500.0,0.00013698,2]
[424201479,1780654255000,-500.0,0.00013698,2]
[424201459,1780654255000,-500.0,0.00013698,2]
[424201444,1780654255000,-500.0,0.00013698,2]
[424201481,1780654255000,-500.0,0.00013698,2]
[424201445,1780654255000,-500.0,0.00013698,2]
[424201421,1780654255000,-500.0,0.00013698,2]
[424201417,1780654255000,-500.0,0.00013698,2]
[424201420,1780654255000,-500.0,0.00013698,2]
[424201419,1780654255000,-300.0,0.00013698,2]
[424201418,1780654255000,-500.0,0.00013698,2]
[424201423,1780654255000,-500.0,0.00013698,2]
[424201424,1780654255000,-500.0,0.00013698,2]
[424201422,1780654255000,-500.0,0.00013698,2]
[424201425,1780654255000,-500.0,0.00013698,2]
[424201426,1780654255000,-500.0,0.00013698,2]
[424201430,1780654255000,-500.0,0.00013698,2]
[424201427,1780654255000,-500.0,0.00013698,2]
[424201429,1780654255000,-500.0,0.00013698,2]
[424201431,1780654255000,-500.0,0.00013698,2]
[424201428,1780654255000,-500.0,0.00013698,2]
[424201433,1780654255000,-500.0,0.00013698,2]
[424201443,1780654255000,-500.0,0.00013698,2]
[424201432,1780654255000,-500.0,0.00013698,2]
[424201435,1780654255000,-500.0,0.00013698,2]
[424201434,1780654255000,-500.0,0.00013698,2]
[424201436,1780654255000,-500.0,0.00013698,2]
[424201437,1780654255000,-500.0,0.00013698,2]
[424201442,1780654255000,-500.0,0.00013698,2]
[424201438,1780654255000,-173.2792133,0.00013698,2]
[424201440,1780654255000,-500.0,0.00013698,2]
[424201439,1780654255000,-236.85083914,0.00013698,2]
[424201441,1780654255000,-500.0,0.00013698,2]
[424201446,1780654255000,-500.0,0.00013698,2]
[424201480,1780654255000,-500.0,0.00013698,2]
[424201491,1780654255000,-543.76,0.00013698,2]
[424201471,1780654255000,-500.0,0.00013698,2]
[424201508,1780654255000,-492.52405906,0.00013699,2]
[424201511,1780654255000,-151.0,0.00013699,2]
[424201509,1780654255000,-151.0,0.00013699,2]
[424201513,1780654255000,-151.0,0.00013699,2]
[424201512,1780654255000,-151.0,0.00013699,2]
[424201514,1780654255000,-151.0,0.00013699,2]
[424201517,1780654255000,-2166.15116609,0.00013699,2]
[424201515,1780654255000,-151.0,0.00013699,2]
[424201518,1780654255000,-2166.15116609,0.00013699,2]
[424201516,1780654255000,-151.0,0.00013699,2]
[424201519,1780654255000,-2166.15116609,0.00013699,2]
[424201527,1780654255000,-2166.15116609,0.00013699,2]
[424201507,1780654255000,-289.21740353,0.00013699,10]
[424201529,1780654255000,-2166.15116609,0.00013699,2]
[424201530,1780654255000,-2166.15116609,0.00013699,2]
[424201523,1780654255000,-2166.15116609,0.00013699,2]
[424201525,1780654255000,-2166.15116609,0.00013699,2]
[424201531,1780654255000,-2166.15116609,0.00013699,2]
[424201522,1780654255000,-2166.15116609,0.00013699,2]
[424201521,1780654255000,-2166.15116609,0.00013699,2]
[424201526,1780654255000,-2166.15116609,0.00013699,2]
[424201524,1780654255000,-2166.15116609,0.00013699,2]
[424201533,1780654255000,-2166.15116609,0.00013699,2]
[424201532,1780654255000,-2166.15116609,0.00013699,2]
[424201534,1780654255000,-2166.15116609,0.00013699,2]
[424201477,1780654255000,-212.1318407,0.00013698,2]
[424201528,1780654255000,-2166.15116609,0.00013699,2]
[424201510,1780654255000,-151.0,0.00013699,2]
[424201520,1780654255000,-2166.15116609,0.00013699,2]
[424201505,1780654255000,-166.66,0.00013699,2]
[424201475,1780654255000,-500.0,0.00013698,2]
[424201506,1780654255000,-578.43480708,0.00013699,10]
[424201474,1780654255000,-500.0,0.00013698,2]
[424201476,1780654255000,-500.0,0.00013698,2]
[424201483,1780654255000,-500.0,0.00013698,2]
[424201482,1780654255000,-500.0,0.00013698,2]
[424201484,1780654255000,-336.96748853,0.00013698,2]
[424201485,1780654255000,-500.0,0.00013698,2]
[424201486,1780654255000,-500.0,0.00013698,2]
[424201490,1780654255000,-500.0,0.00013698,2]
[424201487,1780654255000,-500.0,0.00013698,2]
[424201489,1780654255000,-500.0,0.00013698,2]
[424201488,1780654255000,-500.0,0.00013698,2]
[424201535,1780654255000,-808.19221638,0.00013699,2]
[424201478,1780654255000,-500.0,0.00013698,2]
[424201494,1780654255000,-500.0,0.00013698,2]
[424201493,1780654255000,-500.0,0.00013698,2]
[424201498,1780654255000,-500.0,0.00013698,2]
[424201502,1780654255000,-200.0,0.00013699,2]
[424201500,1780654255000,-415.02,0.00013698,2]
[424201497,1780654255000,-500.0,0.00013698,2]
[424201499,1780654255000,-500.0,0.00013698,2]
[424201501,1780654255000,-500.0,0.00013698,2]
[424201495,1780654255000,-500.0,0.00013698,2]
[424201496,1780654255000,-500.0,0.00013698,2]
[424201503,1780654255000,-151.0,0.00013699,2]
[424201492,1780654255000,-500.0,0.00013698,2]
[424201504,1780654255000,-151.0,0.00013699,2]
[424201555,1780654256000,-2166.15116609,0.00013699,2]
[424201553,1780654256000,-2166.15116609,0.00013699,2]
[424201558,1780654256000,-2166.15116609,0.00013699,2]
[424201550,1780654256000,-610.33140052,0.00013699,2]
[424201561,1780654256000,-2166.15116609,0.00013699,2]
[424201557,1780654256000,-2166.15116609,0.00013699,2]
[424201556,1780654256000,-2166.15116609,0.00013699,2]
[424201560,1780654256000,-2166.15116609,0.00013699,2]
[424201554,1780654256000,-2166.15116609,0.00013699,2]
[424201552,1780654256000,-1197.3619265,0.00013699,2]
[424201559,1780654256000,-2166.15116609,0.00013699,2]
[424201551,1780654256000,-968.78923959,0.00013699,2]
[424201542,1780654256000,-701.14323789,0.00013699,2]
[424201549,1780654256000,-1555.81976557,0.00013699,2]
[424201546,1780654256000,-2166.15116609,0.00013699,2]
[424201545,1780654256000,-2166.15116609,0.00013699,2]
[424201544,1780654256000,-2166.15116609,0.00013699,2]
[424201543,1780654256000,-2166.15116609,0.00013699,2]
[424201540,1780654256000,-262.15000001,0.00013699,2]
[424201541,1780654256000,-1154.30639488,0.00013699,2]
[424201537,1780654256000,-329.53861611,0.00013699,2]
[424201539,1780654256000,-48.55153331,0.00013699,2]
[424201538,1780654256000,-1836.61254998,0.00013699,2]
[424201536,1780654256000,-1357.95894971,0.00013699,2]
[424201571,1780654256000,-59.56800303,0.00013699,2]
[424201547,1780654256000,-2166.15116609,0.00013699,2]
[424201563,1780654256000,-2166.15116609,0.00013699,2]
[424201548,1780654256000,-2166.15116609,0.00013699,2]
[424201568,1780654256000,-2106.03645396,0.00013699,2]
[424201589,1780654256000,-1588.53120057,0.00013407,2]
[424201590,1780654256000,-1318.0825526,0.00013699,2]
[424201588,1780654256000,-2074.28179943,0.00013407,2]
[424201587,1780654256000,-820.436,0.00013407,2]
[424201586,1780654256000,-1444.00699477,0.00012024,2]
[424201585,1780654256000,-628.53867994,0.00012024,2]
[424201584,1780654256000,-848.06861349,0.00013699,2]
[424201582,1780654256000,-2166.15116609,0.00013699,2]
[424201583,1780654256000,-2166.15116609,0.00013699,2]
[424201581,1780654256000,-201.08689943,0.00013699,2]
[424201580,1780654256000,-1965.06426666,0.00013699,2]
[424201591,1780654256000,-1322.88311625,0.00013699,2]
[424201579,1780654256000,-1999.14812246,0.00013699,2]
[424201578,1780654256000,-167.00304363,0.00013699,2]
[424201569,1780654256000,-60.11471213,0.00013699,2]
[424201572,1780654256000,-476.37519439,0.00013699,2]
[424201570,1780654256000,-2106.58316306,0.00013699,2]
[424201575,1780654256000,-2166.15116609,0.00013699,2]
[424201564,1780654256000,-2166.15116609,0.00013699,2]
[424201565,1780654256000,-2166.15116609,0.00013699,2]
[424201567,1780654256000,-2166.15116609,0.00013699,2]
[424201574,1780654256000,-2166.15116609,0.00013699,2]
[424201573,1780654256000,-1689.7759717,0.00013699,2]
[424201577,1780654256000,-1383.68008878,0.00013699,2]
[424201576,1780654256000,-782.47107731,0.00013699,2]
[424201566,1780654256000,-2166.15116609,0.00013699,2]
[424201562,1780654256000,-2166.15116609,0.00013699,2]
[424201592,1780654271000,-1871.45012759,0.0001204,2]
[424201593,1780654287000,-537.86277029,0.00011635,2]
[424201594,1780654339000,-1036.553628,0.00011576,2]
[424201595,1780654342000,274.59549068,0.00011463,7]
[424201596,1780654392000,-250.0,0.00011667,2]
[424201597,1780654446000,-190.2879669,0.000116,2]
[424201598,1780654446000,177.96,9.04e-05,2]
[424201599,1780654449000,243.88356867,9.944e-05,2]
[424201600,1780654482000,-6.11643133,9.944e-05,2]
[424201601,1780654482000,-297.20020296,0.00011667,2]
[424201604,1780654482000,-160.0,0.00011704,2]
[424201603,1780654482000,-215.77576141,0.00011704,2]
[424201602,1780654482000,-549.79967508,0.000117,2]
[424201605,1780654482000,-150.0,0.00011786,2]
[424201609,1780654482000,-251.93971064,0.00011863,2]
[424201607,1780654482000,-1530.37,0.000118,2]
[424201606,1780654482000,-2536.97,0.000118,2]
[424201608,1780654482000,-134806.0,0.000118,2]
[424201611,1780654482000,-500.0,0.00011899,2]
[424201612,1780654482000,-500.0,0.00011899,2]
[424201613,1780654482000,-500.0,0.00011899,2]
[424201614,1780654482000,-500.0,0.00011899,2]
[424201615,1780654482000,-500.0,0.00011899,2]
[424201616,1780654482000,-500.0,0.00011899,2]
[424201618,1780654482000,-500.0,0.00011899,2]
[424201617,1780654482000,-500.0,0.00011899,2]
[424201619,1780654482000,-500.0,0.00011899,2]
[424201610,1780654482000,-150.0,0.00011898,2]
[424201620,1780654482000,-500.0,0.00011899,2]
[424201628,1780654483000,-500.0,0.00011899,2]
[424201627,1780654483000,-500.0,0.00011899,2]
[424201626,1780654483000,-500.0,0.00011899,2]
[424201625,1780654483000,-214.85246161,0.00011899,2]
[424201621,1780654483000,-500.0,0.00011899,2]
[424201623,1780654483000,-500.0,0.00011899,2]
[424201622,1780654483000,-500.0,0.00011899,2]
[424201629,1780654483000,-500.0,0.00011899,2]
[424201624,1780654483000,-500.0,0.00011899,2]
[424201631,1780654483000,-500.0,0.00011899,2]
[424201639,1780654483000,-180.913,0.00012036,2]
[424201632,1780654483000,-150.0,0.00011902,2]
[424201641,1780654483000,-440877.46233758,0.00012039,2]